bitfinex/quotes_SOLUSD_20250529
["timestamp","ask_amount","ask_price","bid_price","bid_amount"]
[1748485648808,0.28432314,173.27,173.23,0.83601987]
[1748485649008,0.14216157,173.27,173.23,0.83601987]
[1748485649416,19.53441748,173.24,173.23,0.83601987]
[1748485649614,0.14216157,173.27,173.23,0.83601987]
[1748485649952,25.30675643,173.24,173.23,0.83601987]
[1748485650616,5.77233895,173.24,173.23,0.83601987]
[1748485651227,5.77204506,173.25,173.23,0.83601987]
[1748485651919,19.53441748,173.26,173.23,0.83601987]
[1748485652310,20.19735702,173.29,173.23,0.83601987]
[1748485652516,19.53441748,173.26,173.23,0.83601987]
[1748485652732,19.53441748,173.27,173.23,0.83601987]
[1748485653139,20.19735702,173.29,173.23,0.83601987]
[1748485653841,19.53441748,173.26,173.23,0.83601987]
[1748485654043,14.42668359,173.29,173.23,0.83601987]
[1748485654227,19.53441748,173.26,173.23,0.83601987]
[1748485654432,14.42668359,173.29,173.23,0.83601987]
[1748485654641,19.53441748,173.27,173.23,0.83601987]
[1748485654934,14.42668359,173.29,173.23,0.83601987]
[1748485655138,19.53441748,173.27,173.23,0.83601987]
[1748485655738,14.42668359,173.29,173.23,0.83601987]
[1748485655942,19.53441748,173.27,173.23,0.83601987]
[1748485656243,19.53441748,173.24,173.23,0.83601987]
[1748485656942,19.67657905,173.24,173.23,0.83601987]
[1748485657115,19.67657905,173.24,173.14,1.6256]
[1748485657116,0.14216157,173.23,173.15,19.53441748]
[1748485657316,0.14216157,173.25,173.15,19.53441748]
[1748485657542,0.14216157,173.25,173.16,19.53441748]
[1748485657543,19.53441748,173.21,173.16,19.53441748]
[1748485658121,19.53441748,173.22,173.16,19.53441748]
[1748485658431,5.77333872,173.21,173.16,19.53441748]
[1748485658638,25.3077562,173.21,173.16,19.53441748]
[1748485660673,19.53441748,173.18,173.15,0.67120708]
[1748485660838,5.77333872,173.21,173.15,20.20562456]
[1748485661018,25.3077562,173.21,173.16,19.53441748]
[1748485661763,5.77333872,173.21,173.16,19.53441748]
[1748485662121,19.53441748,173.23,173.17,19.53441748]
[1748485662320,25.30708964,173.23,173.17,19.53441748]
[1748485662521,19.53441748,173.22,173.17,19.53441748]
[1748485663039,19.53441748,173.21,173.15,0.67120708]
[1748485663358,19.53441748,173.19,173.15,0.67120708]
[1748485663887,19.53441748,173.2,173.15,0.67120708]
[1748485664347,20.20435258,173.23,173.16,19.53441748]
[1748485664663,19.53441748,173.21,173.16,19.53441748]
[1748485664868,5.77367205,173.2,173.15,0.67120708]
[1748485665027,25.30808953,173.2,173.15,0.67120708]
[1748485665224,5.77367205,173.2,173.16,19.53441748]
[1748485665730,5.77367205,173.2,173.15,20.20562456]
[1748485666153,25.30808953,173.2,173.15,0.67120708]
[1748485666451,19.53441748,173.18,173.15,0.67120708]
[1748485666653,19.53441748,173.19,173.15,0.67120708]
[1748485666953,5.77433883,173.18,173.15,0.67120708]
[1748485669963,5.77433883,173.18,173.15,20.20562456]
[1748485670564,5.77433883,173.18,173.16,19.53441748]
[1748485671539,5.77433883,173.18,173.15,20.20562456]
[1748485671956,20.20785218,173.2,173.15,20.20562456]
[1748485672163,39.74226966,173.2,173.15,0.67120708]
[1748485672444,20.20785218,173.2,173.15,0.67120708]
[1748485672756,39.74226966,173.2,173.15,0.67120708]
[1748485674367,14.43418013,173.2,173.15,0.67120708]
[1748485674576,33.96859761,173.2,173.15,0.67120708]
[1748485676053,39.74226966,173.2,173.15,0.67120708]
[1748485676254,19.53441748,173.19,173.15,0.67120708]
[1748485677076,19.53441748,173.17,173.15,0.67120708]
[1748485677372,19.53441748,173.16,173.15,0.67120708]
[1748485678061,25.30942325,173.16,173.15,0.67120708]
[1748485678248,5.77500577,173.16,173.15,0.67120708]
[1748485679582,25.30942325,173.16,173.15,0.67120708]
[1748485681781,5.77400542,173.19,173.15,0.67120708]
[1748485682169,5.77400542,173.19,173.16,12.21987079]
[1748485682570,5.77333872,173.21,173.15,12.89107787]
[1748485682778,17.99320951,173.21,173.15,12.89107787]
[1748485683081,17.99320951,173.21,173.16,12.21987079]
[1748485683298,5.77333872,173.21,173.18,12.21987079]
[1748485683857,12.21987079,173.23,173.18,12.21987079]
[1748485684083,19.54190376,173.23,173.16,18.64964886]
[1748485684399,5.77233895,173.24,173.2,19.54190376]
[1748485684582,20.20318632,173.24,173.15,0.67120708]
[1748485684887,19.54190376,173.21,173.15,20.21311084]
[1748485685262,19.54190376,173.2,173.15,20.21311084]
[1748485686076,5.77400542,173.19,173.15,0.67120708]
[1748485687376,0.14216157,173.23,173.17,19.54190376]
[1748485687582,39.74509008,173.24,173.18,19.54190376]
[1748485687967,5.77300542,173.22,173.17,19.54190376]
[1748485688178,5.77300542,173.22,173.18,19.54190376]
[1748485688394,5.77300542,173.22,173.16,18.64964886]
[1748485688576,5.77300542,173.22,173.19,19.54190376]
[1748485688894,5.77300542,173.22,173.17,1.6412]
[1748485689186,5.77300542,173.22,173.19,19.54190376]
[1748485689587,5.77300542,173.22,173.17,1.6412]
[1748485690091,5.77267216,173.23,173.18,19.54190376]
[1748485690297,39.74625634,173.23,173.15,0.67120708]
[1748485690490,20.20435258,173.23,173.15,20.21311084]
[1748485690675,19.54190376,173.21,173.15,20.21311084]
[1748485690871,20.20435258,173.23,173.15,20.21311084]
[1748485691076,20.20435258,173.23,173.16,19.54190376]
[1748485691274,5.77267216,173.23,173.19,19.54190376]
[1748485691482,5.77267216,173.23,173.2,19.54190376]
[1748485691700,5.77200577,173.25,173.2,19.54190376]
[1748485691883,5.77200577,173.25,173.21,19.54190376]
[1748485692089,33.97091061,173.27,173.21,19.54190376]
[1748485692699,14.42900685,173.27,173.21,19.54190376]
[1748485692873,5.77100646,173.28,173.23,19.54190376]
[1748485693070,5.77100646,173.28,173.25,19.54190376]
[1748485693876,5.77100646,173.28,173.23,19.54190376]
[1748485694099,5.77100646,173.28,173.21,20.31424886]
[1748485694100,5.77100646,173.28,173.22,18.64964886]
[1748485694298,5.77100646,173.28,173.23,19.54190376]
[1748485694799,5.77100646,173.28,173.24,19.54190376]
[1748485695579,5.77100646,173.28,173.22,18.64964886]
[1748485695776,5.77100646,173.28,173.23,19.54190376]
[1748485695986,19.54190376,173.25,173.17,1.6079]
[1748485696189,19.54190376,173.24,173.18,38.19155262]
[1748485696496,19.54190376,173.25,173.17,46.25754886]
[1748485696681,19.54190376,173.25,173.18,18.64964886]
[1748485696883,19.54190376,173.23,173.17,47.14980376]
[1748485697084,19.54190376,173.22,173.17,27.6079]
[1748485697305,19.54190376,173.21,173.16,19.54190376]
[1748485697481,19.54190376,173.21,173.15,0.67120708]
[1748485697674,25.31557581,173.2,173.15,0.67120708]
[1748485697882,19.54190376,173.17,173.15,0.67120708]
[1748485698281,20.20785218,173.2,173.15,0.67120708]
[1748485699004,5.77367205,173.2,173.15,20.21311084]
[1748485699597,25.31557581,173.2,173.15,20.21311084]
[1748485700294,25.31557581,173.2,173.15,0.67120708]
[1748485700712,5.77367205,173.2,173.15,0.67120708]
[1748485701015,25.31557581,173.2,173.15,0.67120708]
[1748485702033,14.4330897,173.22,173.15,20.21311084]
[1748485702323,19.54190376,173.21,173.16,19.54190376]
[1748485702489,19.54190376,173.21,173.15,20.21311084]
[1748485702688,14.4330897,173.22,173.15,20.21311084]
[1748485702689,19.54190376,173.2,173.15,20.21311084]
[1748485703099,14.4330897,173.22,173.15,20.21311084]
[1748485703434,19.54190376,173.21,173.15,20.21311084]
[1748485703721,19.54190376,173.21,173.16,19.54190376]
[1748485704093,5.77300542,173.22,173.18,19.54190376]
[1748485705791,19.54190376,173.22,173.17,19.54190376]
[1748485705992,20.20231276,173.25,173.18,19.54190376]
[1748485706192,19.54190376,173.24,173.18,19.54190376]
[1748485706417,20.20231276,173.25,173.18,19.54190376]
[1748485706606,19.54190376,173.23,173.18,19.54190376]
[1748485706792,19.54190376,173.23,173.16,1.5657]
[1748485706994,19.54190376,173.23,173.17,19.54190376]
[1748485707192,19.54190376,173.23,173.16,1.5657]
[1748485707193,5.77200577,173.25,173.21,19.54190376]
[1748485707405,25.31390953,173.25,173.19,18.64964886]
[1748485707712,5.77200577,173.25,173.2,19.54190376]
[1748485707890,25.31390953,173.25,173.2,19.54190376]
[1748485708210,1.5624,173.32,173.23,26.0]
[1748485708409,5.76934171,173.33,173.27,19.54190376]
[1748485708608,5.76834333,173.36,173.3,19.54190376]
[1748485708813,19.54190376,173.35,173.3,19.54190376]
[1748485709016,19.54190376,173.33,173.24,20.44441043]
[1748485709312,19.54190376,173.34,173.29,19.54190376]
[1748485709606,5.76834333,173.36,173.29,19.54190376]
[1748485709808,19.54190376,173.34,173.29,19.54190376]
[1748485710020,5.76934171,173.33,173.24,20.44441043]
[1748485710200,5.76934171,173.33,173.29,19.54190376]
[1748485710791,5.76934171,173.33,173.3,19.54190376]
[1748485711017,19.54190376,173.31,173.24,19.54190376]
[1748485711231,19.54190376,173.25,173.2,83.08]
[1748485711525,19.54190376,173.24,173.2,83.08]
[1748485712004,5.77267216,173.23,173.2,83.08]
[1748485712818,5.77267216,173.23,173.2,102.62190376]
[1748485712983,5.77267216,173.23,173.2,83.08]
[1748485713883,14.42983529,173.26,173.2,83.08]
[1748485714110,19.54190376,173.25,173.2,83.08]
[1748485714591,14.42983529,173.26,173.2,102.62190376]
[1748485714801,19.54190376,173.25,173.2,102.62190376]
[1748485714983,14.42983529,173.26,173.2,102.62190376]
[1748485715182,19.54190376,173.25,173.2,83.08]
[1748485715385,19.54190376,173.25,173.18,22.8]
[1748485715386,19.54190376,173.21,173.18,22.8]
[1748485715606,19.54190376,173.2,173.18,22.8]
[1748485715808,19.54190376,173.21,173.18,22.8]
[1748485716012,5.77367205,173.2,173.18,22.8]
[1748485717091,5.77233895,173.24,173.18,22.8]
[1748485717316,19.04009454,173.35,173.22,26.0]
[1748485717317,5.76900888,173.34,173.22,26.0]
[1748485717524,5.76900888,173.34,173.26,26.0]
[1748485718005,5.76967459,173.32,173.28,19.54190376]
[1748485718418,5.76967459,173.32,173.27,19.54190376]
[1748485718921,19.54190376,173.33,173.28,19.54190376]
[1748485719121,26.0,173.33,173.29,19.54190376]
[1748485719413,5.76900888,173.34,173.26,18.64964886]
[1748485719618,7.9545,173.39,173.26,18.64964886]
[1748485719806,45.54190376,173.36,173.3,19.54190376]
[1748485720138,5.76867608,173.35,173.26,24.42127863]
[1748485720303,5.76867608,173.35,173.29,19.54190376]
[1748485720502,7.9545,173.39,173.31,19.54190376]
[1748485720710,7.9545,173.39,173.26,24.42127863]
[1748485720711,5.76767793,173.38,173.26,24.42127863]
[1748485720917,19.54190376,173.36,173.31,19.54190376]
[1748485721618,19.54190376,173.35,173.3,19.54190376]
[1748485721830,19.54190376,173.35,173.26,18.64964886]
[1748485722032,19.54190376,173.35,173.3,19.54190376]
[1748485722334,0.14216157,173.33,173.18,18.64964886]
[1748485722492,19.54190376,173.29,173.24,19.54190376]
[1748485722698,0.14216157,173.33,173.25,19.54190376]
[1748485722897,19.54190376,173.3,173.2,18.64964886]
[1748485723098,25.31324328,173.27,173.22,19.54190376]
[1748485723413,5.77133952,173.27,173.2,19.54190376]
[1748485723720,25.31324328,173.27,173.21,19.54190376]
[1748485723953,19.54190376,173.26,173.21,19.54190376]
[1748485724132,5.77133952,173.27,173.21,19.54190376]
[1748485724305,25.31324328,173.27,173.22,19.54190376]
[1748485724510,5.77094677,173.29,173.25,19.54190376]
[1748485725204,25.31191126,173.31,173.25,19.54190376]
[1748485725403,19.54190376,173.3,173.22,18.64964886]
[1748485725609,19.54190376,173.3,173.24,19.54190376]
[1748485725805,5.7700075,173.31,173.24,19.54190376]
[1748485726307,19.54190376,173.29,173.24,19.54190376]
[1748485726624,19.54190376,173.29,173.23,19.54190376]
[1748485726933,5.77100646,173.28,173.24,19.54190376]
[1748485727233,25.31291022,173.28,173.23,19.54190376]
[1748485727445,19.54190376,173.26,173.17,1.5444]
[1748485727733,19.54190376,173.24,173.17,1.5444]
[1748485727938,46.19852261,173.28,173.17,1.5444]
[1748485727939,19.54190376,173.22,173.17,1.5444]
[1748485728421,19.54190376,173.21,173.16,19.54190376]
[1748485728751,31.77100646,173.28,173.21,18.64964886]
[1748485728904,19.54190376,173.27,173.22,19.54190376]
[1748485729329,31.77100646,173.28,173.22,19.54190376]
[1748485729533,51.31291022,173.28,173.19,18.64964886]
[1748485729707,31.77100646,173.28,173.19,18.64964886]
[1748485730027,31.77100646,173.28,173.23,19.54190376]
[1748485730028,25.31291022,173.28,173.23,19.54190376]
[1748485730228,5.77100646,173.28,173.23,19.54190376]
[1748485730532,25.31291022,173.28,173.23,19.54190376]
[1748485732430,5.77100646,173.28,173.23,19.54190376]
[1748485732737,19.54190376,173.29,173.24,19.54190376]
[1748485732929,19.54190376,173.27,173.22,19.54190376]
[1748485733315,19.54190376,173.26,173.21,19.54190376]
[1748485733934,19.54190376,173.26,173.2,21.19810376]
[1748485734133,19.54190376,173.24,173.18,45.54190376]
[1748485734325,0.28432314,173.29,173.18,26.0]
[1748485734637,5.77233895,173.24,173.19,19.54190376]
[1748485735220,5.77233895,173.24,173.2,19.54190376]
[1748485736247,19.54190376,173.25,173.18,26.0]
[1748485736248,5.77133952,173.27,173.21,19.54190376]
[1748485736411,19.54190376,173.26,173.21,19.54190376]
[1748485736616,5.77200577,173.25,173.2,19.54190376]
[1748485737139,25.31390953,173.25,173.2,19.54190376]
[1748485738041,66.99901633,173.3,173.23,45.54190376]
[1748485738217,25.31024709,173.36,173.29,19.54190376]
[1748485738418,25.31024709,173.36,173.31,19.54190376]
[1748485738622,5.76834333,173.36,173.32,19.54190376]
[1748485738967,5.76807682,173.37,173.32,19.54190376]
[1748485739144,25.30998058,173.37,173.32,19.54190376]
[1748485739327,19.54190376,173.36,173.28,18.64964886]
[1748485739525,19.54190376,173.36,173.3,19.54190376]
[1748485739942,19.54190376,173.36,173.31,19.54190376]
[1748485740136,5.76867608,173.35,173.28,18.64964886]
[1748485740342,5.76867608,173.35,173.31,19.54190376]
[1748485740748,19.54190376,173.32,173.13,16.51291718]
[1748485740938,26.0,173.32,173.23,41.92190376]
[1748485741145,19.54190376,173.29,173.23,41.92190376]
[1748485741347,19.54190376,173.29,173.24,19.54190376]
[1748485741545,19.54190376,173.3,173.24,19.54190376]
[1748485741729,19.54190376,173.29,173.23,22.38]
[1748485741925,19.54190376,173.29,173.24,19.54190376]
[1748485742151,5.77100646,173.28,173.24,19.54190376]
[1748485742861,25.31291022,173.28,173.23,41.92190376]
[1748485743055,19.54190376,173.26,173.21,18.64964886]
[1748485743361,19.54190376,173.24,173.2,1.5299]
[1748485743542,20.19852261,173.28,173.21,19.54190376]
[1748485744056,19.54190376,173.26,173.21,19.54190376]
[1748485744251,25.31390953,173.25,173.2,1.5299]
[1748485744562,25.31390953,173.25,173.2,21.07180376]
[1748485744744,5.77200577,173.25,173.21,19.54190376]
[1748485744940,5.77200577,173.25,173.2,21.07180376]
[1748485745143,25.31390953,173.25,173.2,1.5299]
[1748485745348,19.54190376,173.24,173.2,1.5299]
[1748485745666,5.77133952,173.27,173.21,19.54190376]
[1748485745861,19.54190376,173.26,173.2,21.07180376]
[1748485746160,19.54190376,173.25,173.2,1.5299]
[1748485746363,20.19968833,173.27,173.2,1.5299]
[1748485746859,14.42834881,173.27,173.2,1.5299]
[1748485747158,19.54190376,173.25,173.2,1.5299]
[1748485747357,19.54190376,173.24,173.2,1.5299]
[1748485748266,19.54190376,173.24,173.19,19.54190376]
[1748485748450,14.42834881,173.27,173.19,19.54190376]
[1748485748782,19.54190376,173.24,173.19,19.54190376]
[1748485749132,5.77267216,173.23,173.19,19.54190376]
[1748485749541,19.54190376,173.24,173.19,19.54190376]
[1748485749747,31.7700075,173.31,173.23,19.54190376]
[1748485749960,19.54190376,173.28,173.23,19.54190376]
[1748485750165,31.7700075,173.31,173.23,19.54190376]
[1748485750343,19.54190376,173.29,173.24,19.54190376]
[1748485750746,19.54190376,173.29,173.23,19.54190376]
[1748485750954,19.54190376,173.28,173.2,18.64964886]
[1748485751148,19.54190376,173.28,173.22,19.54190376]
[1748485751476,14.42585112,173.3,173.23,19.54190376]
[1748485751477,5.77133952,173.27,173.23,19.54190376]
[1748485753761,5.77133952,173.27,173.2,24.42331106]
[1748485753762,5.77133952,173.27,173.19,0.14216157]
[1748485754010,5.77133952,173.27,173.18,18.64964886]
[1748485754151,19.54190376,173.25,173.19,18.64964886]
[1748485754469,19.54190376,173.25,173.2,19.54190376]
[1748485755073,19.54190376,173.25,173.19,38.19155262]
[1748485755272,19.54190376,173.21,173.16,1.5589]
[1748485755448,19.54190376,173.2,173.16,1.5589]
[1748485755787,5.77367205,173.2,173.16,21.10080376]
[1748485756345,25.31557581,173.2,173.16,1.5589]
[1748485757150,5.77367205,173.2,173.16,1.5589]
[1748485757781,5.77367205,173.2,173.15,19.32085594]
[1748485757970,25.31557581,173.2,173.15,19.32085594]
[1748485758165,25.31557581,173.2,173.15,0.67120708]
[1748485758166,19.54190376,173.19,173.15,0.67120708]
[1748485758774,5.77367205,173.2,173.15,0.67120708]
[1748485759272,25.31557581,173.2,173.15,0.67120708]
[1748485759463,25.31557581,173.2,173.15,20.21311084]
[1748485759664,25.31557581,173.2,173.15,0.67120708]
[1748485760072,25.31557581,173.2,173.15,20.21311084]
[1748485760586,19.54190376,173.18,173.15,0.67120708]
[1748485761092,20.20785218,173.2,173.15,0.67120708]
[1748485761296,19.54190376,173.18,173.15,0.67120708]
[1748485762286,14.43418013,173.2,173.15,0.67120708]
[1748485762491,19.54190376,173.17,173.15,0.67120708]
[1748485763191,25.31687137,173.17,173.15,0.67120708]
[1748485763398,0.14216157,173.2,173.15,0.67120708]
[1748485763564,19.54190376,173.19,173.15,0.67120708]
[1748485763995,19.54190376,173.18,173.15,0.67120708]
[1748485764673,5.77333872,173.21,173.15,0.67120708]
[1748485764882,19.54190376,173.18,173.15,0.67120708]
[1748485765388,5.77333872,173.21,173.15,0.67120708]
[1748485765705,19.54190376,173.18,173.15,0.67120708]
[1748485766891,5.77333872,173.21,173.15,0.67120708]
[1748485767088,19.54190376,173.18,173.15,0.67120708]
[1748485767685,25.31630875,173.18,173.15,0.67120708]
[1748485768092,19.54190376,173.17,173.15,0.67120708]
[1748485768481,19.54190376,173.18,173.15,0.67120708]
[1748485770084,25.31623886,173.19,173.15,0.67120708]
[1748485771293,19.54190376,173.19,173.15,0.67120708]
[1748485772489,19.54190376,173.2,173.15,0.67120708]
[1748485772992,19.54190376,173.19,173.15,0.67120708]
[1748485773190,26.0,173.21,173.17,19.54190376]
[1748485773508,25.31495163,173.22,173.17,19.54190376]
[1748485774006,25.31468162,173.23,173.18,19.54190376]
[1748485774807,19.54190376,173.23,173.18,19.54190376]
[1748485775010,19.54190376,173.23,173.17,5.77466056]
[1748485775302,19.54190376,173.23,173.18,19.54190376]
[1748485775615,25.31478736,173.23,173.18,19.54190376]
[1748485775787,19.54190376,173.22,173.17,19.54190376]
[1748485776131,19.54190376,173.22,173.16,18.64964886]
[1748485776583,19.54190376,173.22,173.17,19.54190376]
[1748485777903,12.21455749,173.22,173.17,12.21455749]
[1748485778701,17.98756972,173.22,173.17,12.21455749]
[1748485779180,12.21455749,173.22,173.17,12.21455749]
[1748485779714,12.21455749,173.22,173.17,17.98916396]
[1748485780210,5.77242542,173.24,173.17,17.98916396]
[1748485780395,12.21455749,173.23,173.17,17.98916396]
[1748485780588,12.21455749,173.23,173.17,12.21455749]
[1748485780784,17.98749804,173.23,173.16,24.4245598]
[1748485780980,17.98749804,173.23,173.17,12.21455749]
[1748485781708,12.21455749,173.22,173.17,12.21455749]
[1748485782816,12.21455749,173.21,173.16,36.63911729]
[1748485784387,12.21455749,173.21,173.16,12.21455749]
[1748485784609,12.21455749,173.2,173.15,38.88576457]
[1748485785204,0.14216157,173.24,173.15,38.88576457]
[1748485785523,0.14216157,173.24,173.16,12.21455749]
[1748485785690,12.21455749,173.21,173.16,12.21455749]
[1748485786016,12.21455749,173.21,173.16,17.98927569]
[1748485786716,12.21455749,173.22,173.17,12.21455749]
[1748485787716,5.77167263,173.26,173.16,5.7747182]
[1748485787908,94.61131633,173.27,173.16,5.7747182]
[1748485787909,12.21455749,173.21,173.16,17.98927569]
[1748485788109,12.21455749,173.22,173.17,12.21455749]
[1748485788421,5.9138342,173.26,173.18,12.21455749]
[1748485788615,12.21455749,173.23,173.17,12.21455749]
[1748485788812,12.21455749,173.22,173.16,5.7747182]
[1748485789123,12.21455749,173.22,173.17,12.21455749]
[1748485790208,17.98757725,173.22,173.17,12.21455749]
[1748485791005,12.21455749,173.22,173.17,17.98911796]
[1748485792420,12.21455749,173.22,173.17,12.21455749]
[1748485793627,12.21455749,173.22,173.17,17.98909988]
[1748485794503,1.6472,173.31,173.22,18.64964886]
[1748485794703,1.6472,173.36,173.29,12.21455749]
[1748485794920,6.2757,173.38,173.32,12.21455749]
[1748485795121,5.76774596,173.38,173.32,12.21455749]
[1748485795421,12.21455749,173.37,173.32,12.21455749]
[1748485795615,5.76774596,173.38,173.32,12.21455749]
[1748485795811,12.21455749,173.37,173.32,12.21455749]
[1748485796223,12.21455749,173.37,173.32,17.98416177]
[1748485796412,5.76701268,173.4,173.32,17.98416177]
[1748485796608,12.21455749,173.38,173.33,12.21455749]
[1748485797629,17.98199911,173.39,173.34,12.21455749]
[1748485797801,5.76707865,173.4,173.34,12.21455749]
[1748485798224,17.98163614,173.4,173.34,12.21455749]
[1748485798403,5.76672763,173.41,173.35,12.21455749]
[1748485798604,12.21455749,173.4,173.35,12.21455749]
[1748485799617,12.21455749,173.39,173.34,2.93181024]
[1748485799802,12.21455749,173.4,173.34,12.21455749]
[1748485800007,5.76672469,173.41,173.34,17.98352205]
[1748485800504,5.76672469,173.41,173.33,5.76923282]
[1748485800735,5.76672469,173.41,173.35,12.21455749]
[1748485800903,12.04208151,173.42,173.35,12.21455749]
[1748485801104,0.28432314,173.44,173.33,5.76923282]
[1748485801105,5.76568265,173.44,173.37,12.21455749]
[1748485801305,12.21455749,173.4,173.34,2.88540168]
[1748485801530,5.76628054,173.43,173.37,12.21455749]
[1748485801713,12.21455749,173.41,173.36,12.21455749]
[1748485801914,5.76573929,173.44,173.38,12.21455749]
[1748485802216,9.9964949,173.45,173.34,44.64964886]
[1748485802217,8.33333333,173.45,173.39,12.21455749]
[1748485802420,12.21455749,173.44,173.39,12.21455749]
[1748485802929,8.33333333,173.45,173.35,18.64964886]
[1748485802930,12.21455749,173.43,173.38,12.21455749]
[1748485803315,0.14216157,173.42,173.34,2.95251919]
[1748485803634,12.21455749,173.39,173.34,12.21455749]
[1748485803821,12.21455749,173.4,173.35,12.21455749]
[1748485804221,14.09878785,173.45,173.39,12.21455749]
[1748485804410,12.21455749,173.44,173.39,12.21455749]
[1748485804611,14.09878785,173.45,173.39,12.21455749]
[1748485804820,12.21455749,173.44,173.39,12.21455749]
[1748485805039,14.09878785,173.45,173.39,12.21455749]
[1748485805416,12.21455749,173.44,173.39,12.21455749]
[1748485805614,14.09878785,173.45,173.4,12.21455749]
[1748485806608,26.31334534,173.45,173.4,12.21455749]
[1748485806922,12.21455749,173.44,173.38,5.76763498]
[1748485807120,12.21455749,173.44,173.37,7.32065516]
[1748485807316,12.21455749,173.44,173.39,12.21455749]
[1748485807651,14.09873763,173.45,173.42,12.21455749]
[1748485807652,8.33333333,173.45,173.42,12.21455749]
[1748485807852,8.33333333,173.45,173.38,18.64964886]
[1748485808147,8.33333333,173.45,173.43,12.21455749]
[1748485808670,8.33333333,173.45,173.44,12.21455749]
[1748485809109,8.33333333,173.45,173.44,30.86420635]
[1748485810136,8.33333333,173.45,173.44,46.26094886]
[1748485810312,1.5763,173.6,173.47,26.0]
[1748485810508,103.17234966,173.66,173.49,5.76402098]
[1748485810509,5.76080652,173.59,173.49,5.76402098]
[1748485810919,5.76080652,173.59,173.5,18.64964886]
[1748485811321,5.76080652,173.59,173.53,12.21455749]
[1748485811734,18.64964886,173.64,173.48,50.41400209]
[1748485812039,5.75904169,173.64,173.53,12.21455749]
[1748485812221,5.75904169,173.64,173.48,50.41400209]
[1748485812624,6.5087,173.65,173.48,64.82488518]
[1748485812625,0.14216157,173.63,173.48,64.82488518]
[1748485812829,6.5087,173.65,173.49,0.28432314]
[1748485813133,12.26753681,173.65,173.53,27.607]
[1748485813331,12.26753681,173.65,173.58,12.21455749]
[1748485813537,12.26753681,173.65,173.54,18.64964886]
[1748485813855,12.26753681,173.65,173.54,24.41181029]
[1748485814215,6.5087,173.65,173.54,50.41181029]
[1748485814410,6.5087,173.65,173.54,56.96361029]
[1748485814611,12.26764065,173.65,173.54,38.31396143]
[1748485814815,12.26764065,173.65,173.54,12.31396143]
[1748485815229,12.26764065,173.65,173.53,1.607]
[1748485815549,0.14216157,173.64,173.5,6.5518]
[1748485815718,38.26764065,173.65,173.5,6.5518]
[1748485815719,6.5087,173.65,173.51,5.76319856]
[1748485816054,12.26751809,173.65,173.52,44.64964886]
[1748485816224,6.5087,173.65,173.57,21.07117088]
[1748485816556,21.07117088,173.63,173.52,44.64964886]
[1748485816865,8.33333333,173.66,173.57,1.6054]
[1748485817219,8.33333333,173.66,173.58,18.64964886]
[1748485817865,8.33333333,173.66,173.59,6.41906865]
[1748485818232,8.33333333,173.66,173.6,0.67362293]
[1748485818436,8.33333333,173.66,173.6,21.74479381]
[1748485818742,8.33333333,173.66,173.6,0.67362293]
[1748485819046,21.07117088,173.63,173.61,0.67358413]
[1748485819248,21.07117088,173.62,173.61,0.67358413]
[1748485819558,8.33333333,173.66,173.57,7.36668476]
[1748485819844,21.07117088,173.62,173.58,0.51114738]
[1748485820150,34.33333333,173.66,173.58,0.51114738]
[1748485820349,21.07117088,173.62,173.58,0.51114738]
[1748485820669,40.09198794,173.66,173.58,21.58231826]
[1748485820825,8.33333333,173.66,173.6,21.07117088]
[1748485821158,8.33333333,173.66,173.58,6.27204738]
[1748485821326,8.33333333,173.66,173.6,21.07117088]
[1748485821746,8.33333333,173.66,173.6,5.76017306]
[1748485821747,21.07117088,173.65,173.6,5.76017306]
[1748485821946,8.33333333,173.66,173.6,26.83134394]
[1748485822167,8.33333333,173.66,173.61,21.07117088]
[1748485822375,8.33333333,173.66,173.63,21.07117088]
[1748485822581,8.33333333,173.66,173.6,5.76017306]
[1748485822743,8.33333333,173.66,173.62,21.07117088]
[1748485822944,8.33333333,173.66,173.61,1.6278]
[1748485823160,8.33333333,173.66,173.61,20.27744886]
[1748485823442,8.33333333,173.66,173.64,21.07117088]
[1748485823645,8.33333333,173.66,173.65,5.75871004]
[1748485824143,8.33333333,173.66,173.63,5.75916437]
[1748485824681,8.33333333,173.66,173.61,28.45877895]
[1748485824982,8.33333333,173.66,173.62,21.07117088]
[1748485825271,8.33333333,173.66,173.61,1.6278]
[1748485825871,8.33333333,173.66,173.63,21.07117088]
[1748485826087,8.33333333,173.66,173.64,21.07117088]
[1748485826440,8.33333333,173.66,173.61,7.38772322]
[1748485826677,8.33333333,173.66,173.63,21.07117088]
[1748485826847,8.33333333,173.66,173.64,21.07117088]
[1748485827248,8.33333333,173.66,173.64,26.0]
[1748485827486,8.33333333,173.66,173.64,18.64964886]
[1748485827708,8.33333333,173.66,173.65,5.75871004]
[1748485827978,8.33333333,173.66,173.65,26.82988092]
[1748485828275,8.33333333,173.66,173.63,5.75906315]
[1748485828463,8.33333333,173.66,173.65,21.07117088]
[1748485828770,8.33333333,173.66,173.63,5.75906315]
[1748485828971,8.33333333,173.66,173.65,21.07117088]
[1748485829184,8.33333333,173.66,173.63,5.75906315]
[1748485829185,8.33333333,173.66,173.63,24.40871201]